[Event "Late-Titled-Tuesday-Blitz-April-16-2024"]
[Site "Chess.com"]
[Date "2024.04.16"]
[Round "10"]
[White "temus_galaktionov"]
[Black "Msb2"]
[Result "0-1"]
[WhiteElo "2885"]
[BlackElo "3021"]
[TimeControl "180+1"]
[EndTime "15:54:00 PDT"]
[Termination "Msb2 won by resignation"]

1. d4 {[%clk 0:03:00.9]} 1... d5 {[%clk 0:03:00.4]} 2. c4 {[%clk 0:03:00.4]}
2... e6 {[%clk 0:03:01.1]} 3. Nf3 {[%clk 0:03:00.2]} 3... Nf6 {[%clk 0:03:01.2]}
4. Nc3 {[%clk 0:03:00.2]} 4... Bb4 {[%clk 0:03:01.1]} 5. cxd5 {[%clk 0:03:00.1]}
5... exd5 {[%clk 0:03:02]} 6. Bg5 {[%clk 0:03:00.1]} 6... h6 {[%clk 0:03:01.8]}
7. Bxf6 {[%clk 0:02:59.5]} 7... Qxf6 {[%clk 0:03:02.7]} 8. e3 {[%clk 0:02:59.1]}
8... c5 {[%clk 0:02:59.7]} 9. Bd3 {[%clk 0:02:56.5]} 9... c4 {[%clk 0:02:54.8]}
10. Bc2 {[%clk 0:02:56.6]} 10... O-O {[%clk 0:02:47]} 11. O-O {[%clk 0:02:56.4]}
11... Be6 {[%clk 0:02:47.5]} 12. e4 {[%clk 0:02:54.2]} 12... Bxc3 {[%clk
0:02:33.2]} 13. bxc3 {[%clk 0:02:41.4]} 13... Nc6 {[%clk 0:02:21]} 14. Rb1
{[%clk 0:02:40.9]} 14... Rab8 {[%clk 0:02:19]} 15. e5 {[%clk 0:02:40.4]} 15...
Qf4 {[%clk 0:02:18.9]} 16. Qc1 {[%clk 0:02:27.2]} 16... Qxc1 {[%clk 0:02:18.4]}
17. Rfxc1 {[%clk 0:02:28.1]} 17... b5 {[%clk 0:02:17.5]} 18. a3 {[%clk
0:02:25.1]} 18... a5 {[%clk 0:02:17.2]} 19. Rb2 {[%clk 0:02:18.7]} 19... Rb6
{[%clk 0:02:01.6]} 20. Rcb1 {[%clk 0:02:18.6]} 20... Rfb8 {[%clk 0:02:01.8]} 21.
h3 {[%clk 0:02:10.4]} 21... b4 {[%clk 0:01:59.7]} 22. axb4 {[%clk 0:02:11.3]}
22... axb4 {[%clk 0:02:00.6]} 23. cxb4 {[%clk 0:02:11.5]} 23... Nxb4 {[%clk
0:01:52.7]} 24. Ne1 {[%clk 0:01:57.9]} 24... Nxc2 {[%clk 0:01:33.3]} 25. Rxb6
{[%clk 0:01:57.6]} 25... Rxb6 {[%clk 0:01:34.2]} 26. Rxb6 {[%clk 0:01:57.5]}
26... Nxe1 {[%clk 0:01:34.8]} 27. Rb1 {[%clk 0:01:22.3]} 27... Nc2 {[%clk
0:01:17.2]} 28. Rd1 {[%clk 0:01:21.9]} 28... Nb4 {[%clk 0:01:17.9]} 29. Kf1
{[%clk 0:01:21.1]} 29... c3 {[%clk 0:01:08.4]} 30. Rc1 {[%clk 0:01:18.8]} 30...
c2 {[%clk 0:01:05.6]} 31. Ke2 {[%clk 0:01:18.1]} 31... Bf5 {[%clk 0:01:04.7]}
32. Kd2 {[%clk 0:01:18.1]} 32... Na2 {[%clk 0:01:02.2]} 33. Ra1 {[%clk
0:01:15.5]} 33... c1=Q+ {[%clk 0:01:01.3]} 34. Rxc1 {[%clk 0:01:16.2]} 34...
Nxc1 {[%clk 0:01:02.2]} 35. Kxc1 {[%clk 0:01:17.1]} 35... g5 {[%clk 0:00:55.2]}
36. Kd2 {[%clk 0:01:17.1]} 36... Kg7 {[%clk 0:00:50.7]} 37. Ke3 {[%clk
0:01:04.2]} 37... Kg6 {[%clk 0:00:49.6]} 38. f3 {[%clk 0:01:00.2]} 38... Be6
{[%clk 0:00:45]} 39. g4 {[%clk 0:00:55.5]} 39... h5 {[%clk 0:00:44.8]} 40. Kf2
{[%clk 0:00:54.1]} 40... Bd7 {[%clk 0:00:42.2]} 41. Ke3 {[%clk 0:00:53.8]} 41...
Bb5 {[%clk 0:00:41.7]} 42. Kf2 {[%clk 0:00:53.9]} 42... Bc4 {[%clk 0:00:41.4]}
43. Ke1 {[%clk 0:00:52.6]} 43... h4 {[%clk 0:00:38]} 44. Kf2 {[%clk 0:00:52.4]}
44... Kg7 {[%clk 0:00:35.1]} 45. Kg2 {[%clk 0:00:50.5]} 45... Kf8 {[%clk
0:00:24.8]} 46. f4 {[%clk 0:00:49.4]} 46... gxf4 {[%clk 0:00:25]} 47. Kf3 {[%clk
0:00:49.8]} 47... Kg7 {[%clk 0:00:24.5]} 48. Kxf4 {[%clk 0:00:50]} 48... Kg6
{[%clk 0:00:25.1]} 49. g5 {[%clk 0:00:49.1]} 49... Be2 {[%clk 0:00:25.4]} 0-1

[Event "Late-Titled-Tuesday-Blitz-April-16-2024"]
[Site "Chess.com"]
[Date "2024.04.16"]
[Round "10"]
[White "marcodobrikov"]
[Black "Binary010"]
[Result "1-0"]
[WhiteElo "2629"]
[BlackElo "2769"]
[TimeControl "180+1"]
[EndTime "15:54:07 PDT"]
[Termination "marcodobrikov won on time"]

1. e4 {[%clk 0:03:00.5]} 1... c5 {[%clk 0:02:59.7]} 2. Nf3 {[%clk 0:02:56.8]}
2... a6 {[%clk 0:03:00.2]} 3. c4 {[%clk 0:02:57.2]} 3... Nc6 {[%clk 0:02:59.6]}
4. Nc3 {[%clk 0:02:57.6]} 4... e5 {[%clk 0:02:59]} 5. Nd5 {[%clk 0:02:58]} 5...
d6 {[%clk 0:02:57.3]} 6. d3 {[%clk 0:02:58.5]} 6... Nge7 {[%clk 0:02:52]} 7. Be2
{[%clk 0:02:51.1]} 7... Bg4 {[%clk 0:02:48.9]} 8. O-O {[%clk 0:02:50.7]} 8...
Bxf3 {[%clk 0:02:39.6]} 9. Bxf3 {[%clk 0:02:51.2]} 9... Nxd5 {[%clk 0:02:39.9]}
10. cxd5 {[%clk 0:02:48]} 10... Nd4 {[%clk 0:02:39.8]} 11. Bg4 {[%clk
0:02:48.9]} 11... g6 {[%clk 0:02:36.8]} 12. f4 {[%clk 0:02:41.5]} 12... h5
{[%clk 0:02:29]} 13. Bh3 {[%clk 0:02:38.8]} 13... Bg7 {[%clk 0:02:24.3]} 14. f5
{[%clk 0:02:20.9]} 14... g5 {[%clk 0:02:20.7]} 15. g4 {[%clk 0:02:19.2]} 15...
hxg4 {[%clk 0:02:15.4]} 16. Bxg4 {[%clk 0:02:20.1]} 16... Qf6 {[%clk 0:02:09.5]}
17. h3 {[%clk 0:02:16.9]} 17... Qh6 {[%clk 0:01:56.9]} 18. Be3 {[%clk
0:02:16.3]} 18... Bf6 {[%clk 0:01:54.6]} 19. Rc1 {[%clk 0:02:09.9]} 19... Ke7
{[%clk 0:01:51.8]} 20. Kg2 {[%clk 0:02:06.8]} 20... Rac8 {[%clk 0:01:51.3]} 21.
a3 {[%clk 0:02:03.8]} 21... Rc7 {[%clk 0:01:45.8]} 22. b4 {[%clk 0:02:03.3]}
22... Rhc8 {[%clk 0:01:44.8]} 23. bxc5 {[%clk 0:01:59.6]} 23... Rxc5 {[%clk
0:01:44]} 24. Rxc5 {[%clk 0:01:59.9]} 24... Rxc5 {[%clk 0:01:44.2]} 25. Qb1
{[%clk 0:01:56.1]} 25... b5 {[%clk 0:01:35.6]} 26. a4 {[%clk 0:01:52.5]} 26...
Qh8 {[%clk 0:01:26.5]} 27. a5 {[%clk 0:01:52.6]} 27... Qd8 {[%clk 0:01:17.6]}
28. Rc1 {[%clk 0:01:50.3]} 28... Qxa5 {[%clk 0:01:13.6]} 29. Rxc5 {[%clk
0:01:50.7]} 29... dxc5 {[%clk 0:01:14]} 30. Qc1 {[%clk 0:01:51.4]} 30... Kd6
{[%clk 0:00:38.2]} 31. Bxg5 {[%clk 0:01:48.6]} 31... Qd8 {[%clk 0:00:34.8]} 32.
Be3 {[%clk 0:01:33.6]} 32... a5 {[%clk 0:00:35]} 33. Qb2 {[%clk 0:01:24.2]}
33... b4 {[%clk 0:00:35.3]} 34. Bd1 {[%clk 0:01:24.2]} 34... Qg8+ {[%clk
0:00:33.5]} 35. Kh2 {[%clk 0:01:22.2]} 35... Bg5 {[%clk 0:00:17.4]} 36. Bxd4
{[%clk 0:01:14.2]} 36... Bf4+ {[%clk 0:00:16.1]} 37. Kh1 {[%clk 0:01:12.5]}
37... exd4 {[%clk 0:00:15.7]} 38. Qg2 {[%clk 0:01:11.5]} 38... Qxg2+ {[%clk
0:00:07.7]} 39. Kxg2 {[%clk 0:01:12.4]} 39... Ke5 {[%clk 0:00:03.7]} 40. Kf3
{[%clk 0:01:09.9]} 40... Bh6 {[%clk 0:00:03.7]} 41. Bb3 {[%clk 0:01:08.2]} 41...
Kf6 {[%clk 0:00:02.8]} 42. h4 {[%clk 0:01:08.3]} 42... Be3 {[%clk 0:00:03.2]}
43. d6 {[%clk 0:01:05.7]} 43... Bh6 {[%clk 0:00:02.1]} 44. e5+ {[%clk
0:00:59.4]} 1-0

[Event "Late-Titled-Tuesday-Blitz-April-16-2024"]
[Site "Chess.com"]
[Date "2024.04.16"]
[Round "10"]
[White "IMRosen"]
[Black "EddieMarsalla"]
[Result "0-1"]
[WhiteElo "2707"]
[BlackElo "2607"]
[TimeControl "180+1"]
[EndTime "15:54:09 PDT"]
[Termination "EddieMarsalla won by checkmate"]

1. e4 {[%clk 0:02:59.7]} 1... c6 {[%clk 0:02:58.6]} 2. Nc3 {[%clk 0:02:59.5]}
2... d5 {[%clk 0:02:57.8]} 3. d4 {[%clk 0:03:00.2]} 3... dxe4 {[%clk 0:02:54.2]}
4. Nxe4 {[%clk 0:03:01.1]} 4... Bf5 {[%clk 0:02:54.2]} 5. Ng3 {[%clk 0:03:01]}
5... Bg6 {[%clk 0:02:54.4]} 6. h4 {[%clk 0:03:01.7]} 6... h6 {[%clk 0:02:54.2]}
7. Nf3 {[%clk 0:03:02.2]} 7... Nd7 {[%clk 0:02:53.9]} 8. Bd3 {[%clk 0:03:02.1]}
8... Bxd3 {[%clk 0:02:53.1]} 9. Qxd3 {[%clk 0:03:03]} 9... e6 {[%clk 0:02:53.2]}
10. Bf4 {[%clk 0:02:58.1]} 10... Ngf6 {[%clk 0:02:51.7]} 11. O-O-O {[%clk
0:02:53.4]} 11... Qa5 {[%clk 0:02:42.2]} 12. Kb1 {[%clk 0:02:51.8]} 12... Nd5
{[%clk 0:02:32.8]} 13. Bd2 {[%clk 0:02:50.1]} 13... Qc7 {[%clk 0:02:32.6]} 14.
Ne4 {[%clk 0:02:44.5]} 14... N7f6 {[%clk 0:02:28.3]} 15. Ne5 {[%clk 0:02:39.3]}
15... Nxe4 {[%clk 0:02:24.4]} 16. Qxe4 {[%clk 0:02:39.4]} 16... O-O-O {[%clk
0:02:24.6]} 17. h5 {[%clk 0:02:20.1]} 17... Bd6 {[%clk 0:02:22.3]} 18. Nd3
{[%clk 0:02:18]} 18... Rhe8 {[%clk 0:02:19.3]} 19. Qg4 {[%clk 0:02:14.3]} 19...
Rg8 {[%clk 0:02:03.3]} 20. Rhe1 {[%clk 0:02:13.4]} 20... Nf6 {[%clk 0:02:03.4]}
21. Qh3 {[%clk 0:02:09.9]} 21... Rge8 {[%clk 0:02:03.2]} 22. g4 {[%clk
0:02:05.3]} 22... Qb6 {[%clk 0:02:01.9]} 23. Be3 {[%clk 0:01:40.8]} 23... Nd5
{[%clk 0:02:00.3]} 24. c4 {[%clk 0:01:31.4]} 24... Nc3+ {[%clk 0:02:00.1]} 25.
Kc2 {[%clk 0:01:11.6]} 25... Nxd1 {[%clk 0:02:01]} 26. Rxd1 {[%clk 0:01:12.2]}
26... Qa6 {[%clk 0:01:59.6]} 27. c5 {[%clk 0:01:04.5]} 27... Qa4+ {[%clk
0:01:51.3]} 28. b3 {[%clk 0:00:33.5]} 28... Qxa2+ {[%clk 0:01:50.4]} 29. Nb2
{[%clk 0:00:34.1]} 29... Bxc5 {[%clk 0:01:51]} 30. Qf1 {[%clk 0:00:06.6]} 30...
Ba3 {[%clk 0:01:46.3]} 31. Rb1 {[%clk 0:00:07]} 31... Bxb2 {[%clk 0:01:44.8]}
32. Rxb2 {[%clk 0:00:07]} 32... Qa5 {[%clk 0:01:45.3]} 33. b4 {[%clk 0:00:05.5]}
33... Qb5 {[%clk 0:01:43.9]} 34. Qe1 {[%clk 0:00:03.1]} 34... e5 {[%clk
0:01:42.2]} 35. dxe5 {[%clk 0:00:02.6]} 35... Qxe5 {[%clk 0:01:39.5]} 36. Qe2
{[%clk 0:00:02.1]} 36... Qe4+ {[%clk 0:01:38.7]} 37. Kc1 {[%clk 0:00:02.7]}
37... Rd3 {[%clk 0:01:38]} 38. b5 {[%clk 0:00:02.7]} 38... Rxe3 {[%clk
0:01:31.2]} 39. fxe3 {[%clk 0:00:02.6]} 39... Qxe3+ {[%clk 0:01:32.1]} 40. Qxe3
{[%clk 0:00:03.2]} 40... Rxe3 {[%clk 0:01:32.8]} 41. bxc6 {[%clk 0:00:03.7]}
41... bxc6 {[%clk 0:01:33.4]} 42. Ra2 {[%clk 0:00:03.6]} 42... Kb7 {[%clk
0:01:33.1]} 43. Ra4 {[%clk 0:00:03.8]} 43... Kb6 {[%clk 0:01:31.9]} 44. Rf4
{[%clk 0:00:03.6]} 44... f6 {[%clk 0:01:32]} 45. Rd4 {[%clk 0:00:04.4]} 45...
Rg3 {[%clk 0:01:30.8]} 46. Kd2 {[%clk 0:00:04.6]} 46... a5 {[%clk 0:01:30.6]}
47. Ke2 {[%clk 0:00:05.1]} 47... Kc5 {[%clk 0:01:30.6]} 48. Ra4 {[%clk
0:00:04.6]} 48... Kb5 {[%clk 0:01:30.7]} 49. Rf4 {[%clk 0:00:04.7]} 49... a4
{[%clk 0:01:29]} 50. Kd2 {[%clk 0:00:04.4]} 50... c5 {[%clk 0:01:27]} 51. Kc2
{[%clk 0:00:03.2]} 51... c4 {[%clk 0:01:27.2]} 52. Re4 {[%clk 0:00:02.8]} 52...
Kb4 {[%clk 0:01:27.1]} 53. Kb1 {[%clk 0:00:02]} 53... Kb3 {[%clk 0:01:26.1]} 54.
Re1 {[%clk 0:00:01.7]} 54... Rg2 {[%clk 0:01:22.7]} 55. Ka1 {[%clk 0:00:01.4]}
55... c3 {[%clk 0:01:21.3]} 56. Rb1+ {[%clk 0:00:01.5]} 56... Rb2 {[%clk
0:01:20.9]} 57. Rc1 {[%clk 0:00:02.1]} 57... Ra2+ {[%clk 0:01:21]} 58. Kb1
{[%clk 0:00:02.4]} 58... c2+ {[%clk 0:01:21.6]} 59. Rxc2 {[%clk 0:00:03]} 59...
Rxc2 {[%clk 0:01:22.1]} 60. Ka1 {[%clk 0:00:03.1]} 60... Rc1# {[%clk 0:01:21.8]}
0-1

[Event "Late-Titled-Tuesday-Blitz-April-16-2024"]
[Site "Chess.com"]
[Date "2024.04.16"]
[Round "10"]
[White "simaopdias"]
[Black "noblerone"]
[Result "1-0"]
[WhiteElo "2263"]
[BlackElo "2455"]
[TimeControl "180+1"]
[EndTime "15:54:09 PDT"]
[Termination "simaopdias won by resignation"]

1. e4 {[%clk 0:03:00.2]} 1... c5 {[%clk 0:02:59.3]} 2. Nf3 {[%clk 0:03:00.8]}
2... e6 {[%clk 0:03:00.2]} 3. d4 {[%clk 0:03:01.4]} 3... cxd4 {[%clk 0:03:01.1]}
4. Nxd4 {[%clk 0:03:02.1]} 4... Qb6 {[%clk 0:03:02]} 5. Nb3 {[%clk 0:03:01.5]}
5... Qc7 {[%clk 0:03:02.3]} 6. Be3 {[%clk 0:02:58.3]} 6... Nf6 {[%clk
0:03:00.5]} 7. Bd3 {[%clk 0:02:58]} 7... a6 {[%clk 0:03:00.4]} 8. O-O {[%clk
0:02:58.5]} 8... d6 {[%clk 0:02:42.2]} 9. c4 {[%clk 0:02:58.2]} 9... b6 {[%clk
0:02:41.8]} 10. Nc3 {[%clk 0:02:58.4]} 10... Bb7 {[%clk 0:02:40.9]} 11. f3
{[%clk 0:02:58.5]} 11... Be7 {[%clk 0:02:36.3]} 12. Qe2 {[%clk 0:02:59.1]} 12...
O-O {[%clk 0:02:33.1]} 13. Rfc1 {[%clk 0:02:57.6]} 13... Nbd7 {[%clk 0:02:30.7]}
14. Na4 {[%clk 0:02:56.8]} 14... Nc5 {[%clk 0:02:30.2]} 15. Nbxc5 {[%clk
0:02:45]} 15... dxc5 {[%clk 0:02:06.7]} 16. Nc3 {[%clk 0:02:45.9]} 16... Rfd8
{[%clk 0:02:03]} 17. Bc2 {[%clk 0:02:45.6]} 17... Bd6 {[%clk 0:02:00.9]} 18. g3
{[%clk 0:02:44.2]} 18... Be5 {[%clk 0:02:01.2]} 19. Bb3 {[%clk 0:02:35.1]} 19...
Bd4 {[%clk 0:01:59.1]} 20. Kg2 {[%clk 0:02:32.2]} 20... h6 {[%clk 0:01:50.4]}
21. Bxd4 {[%clk 0:02:27]} 21... Rxd4 {[%clk 0:01:46.1]} 22. Rd1 {[%clk
0:02:25.9]} 22... Rad8 {[%clk 0:01:46.4]} 23. Rxd4 {[%clk 0:02:21.3]} 23... Rxd4
{[%clk 0:01:45.6]} 24. Rd1 {[%clk 0:02:21.3]} 24... Qd8 {[%clk 0:01:37.5]} 25.
Kf2 {[%clk 0:02:16]} 25... Qd7 {[%clk 0:01:33.4]} 26. Bc2 {[%clk 0:02:13]} 26...
Bc6 {[%clk 0:01:25.9]} 27. Rd3 {[%clk 0:02:10.7]} 27... h5 {[%clk 0:01:15.7]}
28. Qd2 {[%clk 0:02:09.8]} 28... h4 {[%clk 0:01:14.8]} 29. Ne2 {[%clk
0:02:08.1]} 29... hxg3+ {[%clk 0:01:09.6]} 30. hxg3 {[%clk 0:02:08.2]} 30... e5
{[%clk 0:00:39.2]} 31. Nxd4 {[%clk 0:01:58.9]} 31... exd4 {[%clk 0:00:35.4]} 32.
Qg5 {[%clk 0:01:42.6]} 32... Qh3 {[%clk 0:00:33.7]} 33. Qh4 {[%clk 0:01:40.8]}
33... Qe6 {[%clk 0:00:31.7]} 34. Rd2 {[%clk 0:01:30.3]} 34... Qxc4 {[%clk
0:00:31]} 35. e5 {[%clk 0:01:29.1]} 35... Nd5 {[%clk 0:00:27.1]} 36. Bh7+ {[%clk
0:01:24.3]} 36... Kf8 {[%clk 0:00:27.2]} 37. Qd8+ {[%clk 0:01:23.7]} 37... Be8
{[%clk 0:00:27.2]} 38. Be4 {[%clk 0:01:14.2]} 38... Nb4 {[%clk 0:00:15.3]} 39.
Qxb6 {[%clk 0:00:59.3]} 39... Qc1 {[%clk 0:00:13.6]} 40. Re2 {[%clk 0:00:51.5]}
40... d3 {[%clk 0:00:14.1]} 41. Qd6+ {[%clk 0:00:48.5]} 41... Kg8 {[%clk
0:00:13.7]} 42. Bxd3 {[%clk 0:00:48.7]} 42... Qd1 {[%clk 0:00:11.8]} 43. Bh7+
{[%clk 0:00:46.6]} 1-0

[Event "Late-Titled-Tuesday-Blitz-April-16-2024"]
[Site "Chess.com"]
[Date "2024.04.16"]
[Round "10"]
[White "azikom"]
[Black "Orest_Vovk"]
[Result "0-1"]
[WhiteElo "2687"]
[BlackElo "2566"]
[TimeControl "180+1"]
[EndTime "15:54:11 PDT"]
[Termination "Orest_Vovk won on time"]

1. d4 {[%clk 0:03:00]} 1... Nc6 {[%clk 0:02:49.1]} 2. Nf3 {[%clk 0:02:58.6]}
2... e5 {[%clk 0:02:47.5]} 3. dxe5 {[%clk 0:02:57.5]} 3... Qe7 {[%clk 0:02:47]}
4. Nc3 {[%clk 0:02:57]} 4... Nxe5 {[%clk 0:02:46.1]} 5. Nd5 {[%clk 0:02:57.5]}
5... Nxf3+ {[%clk 0:02:45.8]} 6. gxf3 {[%clk 0:02:58.3]} 6... Qd8 {[%clk
0:02:46.2]} 7. Bf4 {[%clk 0:02:56.6]} 7... d6 {[%clk 0:02:46.6]} 8. e4 {[%clk
0:02:54.9]} 8... Be6 {[%clk 0:02:46.4]} 9. Qd2 {[%clk 0:02:53.3]} 9... c6 {[%clk
0:02:46.4]} 10. Nc3 {[%clk 0:02:52.7]} 10... Qa5 {[%clk 0:02:44.4]} 11. a3
{[%clk 0:02:44.5]} 11... O-O-O {[%clk 0:02:43.9]} 12. O-O-O {[%clk 0:02:40.2]}
12... Nf6 {[%clk 0:02:38.2]} 13. Rg1 {[%clk 0:02:35.9]} 13... d5 {[%clk
0:02:37.3]} 14. e5 {[%clk 0:02:29.8]} 14... Bxa3 {[%clk 0:01:50.8]} 15. exf6
{[%clk 0:02:14.2]} 15... Bxb2+ {[%clk 0:01:10.6]} 16. Kxb2 {[%clk 0:02:13.7]}
16... Qb4+ {[%clk 0:01:10.7]} 17. Ka1 {[%clk 0:01:07.4]} 17... Qa3+ {[%clk
0:01:03.4]} 18. Kb1 {[%clk 0:00:20.4]} 18... d4 {[%clk 0:01:04.3]} 19. Qc1
{[%clk 0:00:18.6]} 19... Qa5 {[%clk 0:00:32.6]} 20. Rg5 {[%clk 0:00:12.2]} 20...
b5 {[%clk 0:00:12.6]} 21. fxg7 {[%clk 0:00:09.3]} 21... dxc3 {[%clk 0:00:10.7]}
22. Rxd8+ {[%clk 0:00:08.9]} 22... Rxd8 {[%clk 0:00:09.5]} 23. Rd5 {[%clk
0:00:03.9]} 23... Bxd5 {[%clk 0:00:06.6]} 0-1

[Event "Late-Titled-Tuesday-Blitz-April-16-2024"]
[Site "Chess.com"]
[Date "2024.04.16"]
[Round "10"]
[White "Akhayan"]
[Black "GMMikhailKazakov"]
[Result "0-1"]
[WhiteElo "2398"]
[BlackElo "2513"]
[TimeControl "180+1"]
[EndTime "15:54:12 PDT"]
[Termination "GMMikhailKazakov won on time"]

1. e4 {[%clk 0:03:00.9]} 1... c5 {[%clk 0:02:22.8]} 2. Nf3 {[%clk 0:03:01.3]}
2... e6 {[%clk 0:02:20.2]} 3. d4 {[%clk 0:02:57.6]} 3... cxd4 {[%clk 0:02:21.1]}
4. Nxd4 {[%clk 0:02:57.6]} 4... Nc6 {[%clk 0:02:22]} 5. Nc3 {[%clk 0:02:57.4]}
5... Qc7 {[%clk 0:02:22.9]} 6. g3 {[%clk 0:02:54.5]} 6... a6 {[%clk 0:02:23.8]}
7. Bg2 {[%clk 0:02:54.6]} 7... Nf6 {[%clk 0:02:24.5]} 8. O-O {[%clk 0:02:55]}
8... d6 {[%clk 0:02:25.4]} 9. Re1 {[%clk 0:02:52.9]} 9... Be7 {[%clk 0:02:25.3]}
10. Nxc6 {[%clk 0:02:52.6]} 10... bxc6 {[%clk 0:02:24.7]} 11. e5 {[%clk
0:02:53]} 11... dxe5 {[%clk 0:02:22.4]} 12. Rxe5 {[%clk 0:02:53.6]} 12... O-O
{[%clk 0:02:19.8]} 13. Re1 {[%clk 0:02:50.7]} 13... Bb7 {[%clk 0:02:13.6]} 14.
Bf4 {[%clk 0:02:47.9]} 14... Qc8 {[%clk 0:02:13.5]} 15. Na4 {[%clk 0:02:46.8]}
15... Nd7 {[%clk 0:02:00.8]} 16. Bd6 {[%clk 0:02:39.1]} 16... Bxd6 {[%clk
0:01:55.8]} 17. Qxd6 {[%clk 0:02:37.8]} 17... c5 {[%clk 0:01:56.4]} 18. Bxb7
{[%clk 0:02:12.9]} 18... Qxb7 {[%clk 0:01:57.3]} 19. Rad1 {[%clk 0:02:10.4]}
19... Nf6 {[%clk 0:01:46.5]} 20. Qxc5 {[%clk 0:02:05.9]} 20... Rac8 {[%clk
0:01:36.1]} 21. Qa3 {[%clk 0:01:37.9]} 21... Rxc2 {[%clk 0:01:33.5]} 22. Rc1
{[%clk 0:01:31.9]} 22... Rfc8 {[%clk 0:01:26.3]} 23. Rxc2 {[%clk 0:01:31.2]}
23... Rxc2 {[%clk 0:01:27.2]} 24. Qd3 {[%clk 0:01:22.7]} 24... Rc8 {[%clk
0:01:06]} 25. Nc5 {[%clk 0:01:13.6]} 25... Qb4 {[%clk 0:00:52.2]} 26. Rc1 {[%clk
0:01:00.3]} 26... Qxb2 {[%clk 0:00:50]} 27. Rd1 {[%clk 0:00:39.4]} 27... h6
{[%clk 0:00:41.2]} 28. Nxa6 {[%clk 0:00:27.7]} 28... Qxa2 {[%clk 0:00:40.6]} 29.
Nb4 {[%clk 0:00:22.5]} 29... Qa4 {[%clk 0:00:38.2]} 30. Qd4 {[%clk 0:00:09.4]}
30... Rb8 {[%clk 0:00:32.4]} 31. Rb1 {[%clk 0:00:05.6]} 31... Nd5 {[%clk
0:00:29.3]} 32. Qe5 {[%clk 0:00:01.8]} 32... Rxb4 {[%clk 0:00:27.2]} 33. Ra1
{[%clk 0:00:02.2]} 33... Qe8 {[%clk 0:00:21.4]} 0-1

[Event "Late-Titled-Tuesday-Blitz-April-16-2024"]
[Site "Chess.com"]
[Date "2024.04.16"]
[Round "10"]
[White "XDPS"]
[Black "ekurtz"]
[Result "1-0"]
[WhiteElo "2817"]
[BlackElo "2618"]
[TimeControl "180+1"]
[EndTime "15:54:13 PDT"]
[Termination "XDPS won by resignation"]

1. d4 {[%clk 0:03:00.9]} 1... Nf6 {[%clk 0:02:57.9]} 2. Nf3 {[%clk 0:03:00.9]}
2... g6 {[%clk 0:02:58.1]} 3. Bf4 {[%clk 0:03:00.9]} 3... d6 {[%clk 0:02:58.2]}
4. e3 {[%clk 0:03:01.5]} 4... Bg7 {[%clk 0:02:58.7]} 5. h3 {[%clk 0:03:02.1]}
5... O-O {[%clk 0:02:59.3]} 6. Bh2 {[%clk 0:03:03]} 6... c5 {[%clk 0:02:59.7]}
7. c3 {[%clk 0:03:03]} 7... Qb6 {[%clk 0:03:00.1]} 8. Qb3 {[%clk 0:03:03.3]}
8... Be6 {[%clk 0:03:00.2]} 9. Qa3 {[%clk 0:03:03.9]} 9... Qc6 {[%clk
0:02:55.4]} 10. Nbd2 {[%clk 0:03:01.3]} 10... b5 {[%clk 0:02:55]} 11. Qa5 {[%clk
0:02:40.7]} 11... a6 {[%clk 0:02:47.9]} 12. a4 {[%clk 0:02:40.8]} 12... Nbd7
{[%clk 0:02:12.8]} 13. Be2 {[%clk 0:02:40.1]} 13... Rfb8 {[%clk 0:02:11.2]} 14.
O-O {[%clk 0:01:55.3]} 14... Qb7 {[%clk 0:02:07.8]} 15. dxc5 {[%clk 0:01:38.3]}
15... Nxc5 {[%clk 0:02:04.9]} 16. Nd4 {[%clk 0:01:38.8]} 16... Bd5 {[%clk
0:01:59.2]} 17. b4 {[%clk 0:01:31.2]} 17... Nce4 {[%clk 0:01:53.1]} 18. Nb1
{[%clk 0:01:21.9]} 18... Bc4 {[%clk 0:01:38.9]} 19. Bxc4 {[%clk 0:01:19.2]}
19... bxc4 {[%clk 0:01:39]} 20. f3 {[%clk 0:01:14.8]} 20... Ng5 {[%clk
0:01:19.8]} 21. Qxg5 {[%clk 0:01:14.2]} 21... Nd5 {[%clk 0:01:17.5]} 22. Re1
{[%clk 0:00:54.5]} 22... h6 {[%clk 0:01:10.1]} 23. Qg3 {[%clk 0:00:54.2]} 23...
Qd7 {[%clk 0:01:06.8]} 24. Qf2 {[%clk 0:00:52.8]} 24... e5 {[%clk 0:01:06.5]}
25. Nc2 {[%clk 0:00:52.8]} 25... Nb6 {[%clk 0:00:59.7]} 26. a5 {[%clk 0:00:53]}
26... Nd5 {[%clk 0:00:56.6]} 27. e4 {[%clk 0:00:53.3]} 27... Nc7 {[%clk
0:00:56.5]} 28. Nba3 {[%clk 0:00:52.4]} 28... d5 {[%clk 0:00:55]} 29. Rad1
{[%clk 0:00:50.7]} 29... Qc6 {[%clk 0:00:50.3]} 30. exd5 {[%clk 0:00:50.5]}
30... Nxd5 {[%clk 0:00:51.2]} 31. Nb1 {[%clk 0:00:40.7]} 31... f6 {[%clk
0:00:48.4]} 32. Kh1 {[%clk 0:00:40.5]} 32... Ne7 {[%clk 0:00:43.5]} 33. Ne3
{[%clk 0:00:40]} 33... h5 {[%clk 0:00:39.7]} 34. Nd2 {[%clk 0:00:39.1]} 34...
Bh6 {[%clk 0:00:35.2]} 35. Ne4 {[%clk 0:00:38.9]} 35... Rd8 {[%clk 0:00:33.7]}
36. Qe2 {[%clk 0:00:35.2]} 36... Rxd1 {[%clk 0:00:26.8]} 37. Rxd1 {[%clk
0:00:35.4]} 37... Nf5 {[%clk 0:00:23.7]} 38. Nxf5 {[%clk 0:00:34.7]} 38... gxf5
{[%clk 0:00:24.6]} 39. Rd6 {[%clk 0:00:34.3]} 39... Qa4 {[%clk 0:00:24.6]} 40.
Nxf6+ {[%clk 0:00:33.8]} 40... Kh8 {[%clk 0:00:22.9]} 41. f4 {[%clk 0:00:22.5]}
41... Bg7 {[%clk 0:00:17.4]} 42. Qxh5+ {[%clk 0:00:22.1]} 1-0